bitfinex/quotes_BTCUSD_20250711
["timestamp","ask_amount","ask_price","bid_price","bid_amount"]
[1752215676873,0.0101397,117980.0,117950.0,0.322649]
[1752215677074,0.43885884,117960.0,117950.0,0.17078922]
[1752215677476,0.43885884,117960.0,117950.0,0.17278922]
[1752215677696,0.43885884,117960.0,117950.0,0.17794]
[1752215678029,0.43885884,117970.0,117960.0,0.0413]
[1752215678186,0.43885884,117970.0,117960.0,0.05715013]
[1752215678590,0.1256572,117990.0,117960.0,0.05715013]
[1752215678791,0.1256572,117990.0,117970.0,0.1336]
[1752215679072,0.46045884,117980.0,117970.0,0.14945013]
[1752215679788,0.48075884,117980.0,117970.0,0.14945013]
[1752215680759,0.48075884,117980.0,117970.0,0.15145013]
[1752215682827,0.46699942,117980.0,117970.0,0.15145013]
[1752215682974,0.0419,117980.0,117970.0,0.15145013]
[1752215683205,0.48075884,117980.0,117970.0,0.15145013]
[1752215684524,0.45915884,117980.0,117970.0,0.15145013]
[1752215686576,0.43989617,117980.0,117970.0,0.15145013]
[1752215686774,0.1041572,117990.0,117970.0,0.15145013]
[1752215687019,0.35872727,117990.0,117970.0,0.17105013]
[1752215687226,0.01872727,117990.0,117980.0,0.0414]
[1752215687438,0.45758611,117990.0,117980.0,0.19077013]
[1752215687648,0.43885884,117990.0,117980.0,0.17017013]
[1752215688283,0.43885884,117990.0,117980.0,0.17017524]
[1752215688686,0.43885884,117990.0,117980.0,0.03665524]
[1752215688842,0.43885884,117990.0,117980.0,0.17013524]
[1752215689598,0.43985884,117990.0,117980.0,0.17013524]
[1752215690218,0.45835956,117990.0,117980.0,0.17013524]
[1752215691939,0.45835956,117990.0,117980.0,0.14933524]
[1752215692551,0.45835956,117990.0,117980.0,0.01585524]
[1752215692700,0.59903034,117990.0,117980.0,0.14917524]
[1752215693543,0.57923034,117990.0,117980.0,0.14917524]
[1752215694383,0.54817016,117990.0,117980.0,0.14917524]
[1752215694588,0.44819938,117990.0,117980.0,0.16907524]
[1752215694788,0.44819938,117990.0,117980.0,0.18997524]
[1752215696694,0.40862019,117990.0,117980.0,0.18997524]
[1752215696917,0.002,118000.0,117990.0,0.0434]
[1752215697140,0.4598296,118000.0,117990.0,0.05925524]
[1752215697406,0.44085884,118000.0,117990.0,0.05925524]
[1752215697609,0.44085884,118000.0,117990.0,0.05925574]
[1752215697785,0.43069991,118000.0,117990.0,0.05925574]
[1752215699697,0.43169991,118000.0,117990.0,0.05925574]
[1752215699897,0.43369991,118000.0,117990.0,0.05925574]
[1752215700182,0.46020527,118000.0,117990.0,0.05925574]
[1752215702005,0.02134643,118000.0,117990.0,0.05925574]
[1752215702204,0.46020527,118000.0,117990.0,0.05925574]
[1752215702476,0.02134643,118000.0,117990.0,0.05925574]
[1752215702708,0.46020527,118000.0,117990.0,0.05925574]
[1752215702879,0.003,118000.0,117990.0,0.14468567]
[1752215703389,0.002,118000.0,117990.0,0.14680449]
[1752215703751,0.11884167,118010.0,118000.0,0.0413]
[1752215703952,0.1,118010.0,118000.0,0.19023574]
[1752215704339,0.0898427,118010.0,118000.0,0.19023574]
[1752215704758,0.0898427,118010.0,118000.0,0.27566567]
[1752215704963,0.0898427,118010.0,118000.0,0.47882567]
[1752215705218,0.0898427,118010.0,118000.0,0.47982567]
[1752215705377,0.07525947,118010.0,118000.0,0.47982567]
[1752215705583,0.07525947,118010.0,118000.0,0.91868451]
[1752215705782,0.05455947,118010.0,118000.0,1.35754335]
[1752215705982,0.05455947,118010.0,118000.0,0.93436652]
[1752215706188,0.05455947,118010.0,118000.0,1.8120842]
[1752215706432,0.05455947,118010.0,118000.0,1.37322536]
[1752215706644,0.0342501,118010.0,118000.0,1.37322536]
[1752215706867,0.0342501,118010.0,118000.0,1.37222536]
[1752215707094,0.0342501,118010.0,118000.0,1.39821256]
[1752215707251,0.08635237,118050.0,118010.0,0.06454085]
[1752215707469,0.08635237,118050.0,118040.0,0.043]
[1752215707654,0.07619783,118050.0,118040.0,0.41176567]
[1752215708500,0.00834084,118050.0,118040.0,0.41176567]
[1752215708700,0.50711583,118070.0,118040.0,0.39036567]
[1752215708875,0.06825699,118070.0,118050.0,0.08542993]
[1752215709203,0.06825699,118070.0,118060.0,0.26732]
[1752215709406,0.50711583,118070.0,118060.0,0.28317574]
[1752215709818,0.06825699,118070.0,118060.0,0.28317574]
[1752215710020,0.0004,118070.0,118060.0,0.28317574]
[1752215710196,0.43925884,118070.0,118060.0,0.28317574]
[1752215711425,0.44025884,118070.0,118060.0,0.28317574]
[1752215711623,0.45906016,118070.0,118060.0,0.28317574]
[1752215712584,0.02020132,118070.0,118060.0,0.28317574]
[1752215712810,0.45906016,118070.0,118060.0,0.28317574]
[1752215713239,0.45906016,118070.0,118060.0,0.26732]
[1752215718503,0.02020132,118070.0,118060.0,0.26732]
[1752215718718,0.45906016,118070.0,118060.0,0.26732]
[1752215719160,0.44890643,118070.0,118060.0,0.2830771]
[1752215720464,0.01004759,118070.0,118060.0,0.2830771]
[1752215720670,0.44890643,118070.0,118060.0,0.2830771]
[1752215720870,0.43885884,118070.0,118060.0,0.2830771]
[1752215721525,0.45730879,118070.0,118060.0,0.2830771]
[1752215722185,0.49930879,118070.0,118060.0,0.1491971]
[1752215725081,0.45730879,118070.0,118060.0,0.1491971]
[1752215725483,0.44715499,118070.0,118060.0,0.1491971]
[1752215725916,0.43885884,118070.0,118060.0,0.1491971]
[1752215727798,0.48135884,118070.0,118060.0,0.1489571]
[1752215729071,0.0425,118070.0,118060.0,0.1489571]
[1752215729245,0.48135884,118070.0,118060.0,0.1489571]
[1752215729925,0.49973004,118070.0,118060.0,0.1489571]
[1752215732154,0.48973004,118070.0,118060.0,0.1489571]
[1752215732366,0.45723004,118070.0,118060.0,0.1489571]
[1752215733141,0.45723004,118070.0,118060.0,0.1332]
[1752215733357,0.45723004,118070.0,118060.0,0.14899768]
[1752215733788,0.0183712,118070.0,118060.0,0.14899768]
[1752215733993,0.43885884,118070.0,118060.0,0.14899768]
[1752215735479,0.46005884,118080.0,118060.0,0.14899768]
[1752215735615,0.43885884,118070.0,118060.0,0.14899768]
[1752215736620,0.32464411,118070.0,118060.0,0.33112615]
[1752215737163,0.32464411,118070.0,118060.0,0.22488454]
[1752215738987,0.31449173,118070.0,118060.0,0.22488454]
[1752215739979,0.0419,118080.0,118060.0,0.23014454]
[1752215740186,0.43885884,118070.0,118060.0,0.23014454]
[1752215740388,0.43885884,118070.0,118060.0,0.23015798]
[1752215741898,0.44050884,118070.0,118060.0,0.23015798]
[1752215742119,0.46250884,118070.0,118060.0,0.23015798]
[1752215742878,0.43885884,118070.0,118060.0,0.23015798]
[1752215743492,0.43885884,118070.0,118060.0,0.15427112]
[1752215743731,0.43885884,118070.0,118060.0,0.17657112]
[1752215744781,0.0424,118090.0,118060.0,0.19877112]
[1752215744985,0.43885884,118070.0,118060.0,0.19554112]
[1752215745405,0.42870698,118070.0,118060.0,0.30178273]
[1752215745602,0.42870698,118070.0,118060.0,0.30501273]
[1752215745809,0.42870698,118070.0,118060.0,0.19877112]
[1752215746016,0.42870698,118070.0,118060.0,0.19877159]
[1752215746662,0.43885884,118070.0,118060.0,0.19877159]
[1752215746870,0.43885884,118070.0,118060.0,0.27478185]
[1752215747486,0.43885884,118070.0,118060.0,0.19877159]
[1752215748478,0.43885884,118070.0,118060.0,0.19877313]
[1752215749218,0.42870732,118070.0,118060.0,0.15427313]
[1752215749406,0.42870732,118070.0,118060.0,0.17507313]
[1752215749628,0.42870732,118070.0,118060.0,0.19717313]
[1752215750389,0.43885884,118070.0,118060.0,0.19717313]
[1752215750987,0.43885884,118070.0,118060.0,0.28260306]
[1752215751372,0.43885884,118080.0,118070.0,0.0429]
[1752215751576,0.43885884,118080.0,118070.0,0.13974676]
[1752215751781,0.43885884,118080.0,118070.0,0.13975225]
[1752215752647,0.43985884,118080.0,118070.0,0.13975225]
[1752215753619,0.01897484,118090.0,118070.0,0.13975225]
[1752215753849,0.43885884,118080.0,118070.0,0.09391225]
[1752215754063,0.43885884,118080.0,118070.0,0.22683225]
[1752215754233,0.43885884,118080.0,118070.0,0.22977225]
[1752215754454,0.43885884,118080.0,118070.0,0.21395363]
[1752215754647,0.43885884,118080.0,118070.0,0.22978837]
[1752215756107,0.43885884,118080.0,118070.0,0.21395363]
[1752215756503,0.43885884,118080.0,118070.0,0.23585363]
[1752215756704,0.41496131,118080.0,118070.0,0.28759502]
[1752215758039,0.39571645,118080.0,118070.0,0.28759502]
[1752215758255,0.39571645,118080.0,118070.0,0.18118]
[1752215759155,0.38556533,118080.0,118070.0,0.3034355]
[1752215759511,0.50043368,118090.0,118070.0,0.19702048]
[1752215759742,0.50043368,118090.0,118070.0,0.19408048]
[1752215760087,0.50043368,118090.0,118080.0,0.07897604]
[1752215760294,0.50208368,118090.0,118080.0,0.09481652]
[1752215761074,0.50208368,118090.0,118080.0,0.09187652]
[1752215762314,0.50308368,118090.0,118080.0,0.09187652]
[1752215763689,1.0429433,118090.0,118080.0,0.22467652]
[1752215763919,1.0429433,118090.0,118080.0,0.01584048]
[1752215764793,1.19456635,118090.0,118080.0,0.01584048]
[1752215765073,1.2499988,118090.0,118080.0,0.00738166]
[1752215765262,0.05874085,118070.0,118060.0,0.20883604]
[1752215765481,0.0442,118060.0,118050.0,0.07603604]
[1752215765696,0.57013877,118060.0,118050.0,0.20883604]
[1752215765933,0.0442,118070.0,118050.0,0.21177604]
[1752215766159,0.57116877,118060.0,118040.0,0.10641502]
[1752215766377,0.10265078,118060.0,118050.0,0.0760339]
[1752215766595,0.22170045,118060.0,118050.0,0.0760339]
[1752215766821,0.01454085,118050.0,118040.0,0.0760339]
[1752215767039,0.08542993,118050.0,118030.0,0.1328]
[1752215767256,0.12962993,118040.0,118030.0,0.1328]
[1752215767503,0.11947516,118040.0,118030.0,0.1328]
[1752215767746,0.99719284,118040.0,118030.0,0.1328]
[1752215767956,0.99519284,118040.0,118030.0,0.1328]
[1752215768182,0.98484761,118040.0,118030.0,0.1328]
[1752215768629,0.0217,118030.0,118010.0,0.10641502]
[1752215768869,0.46055884,118020.0,118010.0,0.23925502]
[1752215769128,0.46055884,118020.0,118010.0,0.13284]
[1752215769339,0.54598877,118020.0,118010.0,0.13284]
[1752215769761,0.54598877,118020.0,118010.0,0.13684]
[1752215769970,0.54598877,118020.0,118010.0,0.004]
[1752215770185,0.54598877,118020.0,118010.0,0.13484]
[1752215770400,0.54598877,118020.0,118010.0,0.13684]
[1752215771063,0.54598877,118020.0,118010.0,0.004]
[1752215771307,0.56898877,118020.0,118010.0,0.13684]
[1752215771729,0.56898877,118020.0,118010.0,0.13484]
[1752215773150,0.6021447,118020.0,118010.0,0.13484]
[1752215776104,0.59869791,118020.0,118010.0,0.13484]
[1752215777167,0.59869791,118020.0,118010.0,0.002]
[1752215777281,0.7351047,118020.0,118010.0,0.002]
[1752215777485,0.0442,118010.0,117970.0,0.33075502]
[1752215777736,0.43885884,117980.0,117970.0,0.33075502]
[1752215777937,0.54578877,118000.0,117970.0,0.44245502]
[1752215778270,0.43885884,117980.0,117970.0,0.20304]
[1752215778458,0.43885884,117980.0,117970.0,0.33604]
[1752215779326,0.43885884,117980.0,117970.0,0.20619]
[1752215779533,0.43885884,117980.0,117970.0,0.33915]
[1752215781053,0.59390477,118000.0,117970.0,0.33915]
[1752215781269,0.43885884,117980.0,117970.0,0.33915]
[1752215781465,0.44185884,117980.0,117970.0,0.33911]
[1752215782384,0.44185884,117980.0,117970.0,0.33811]
[1752215782761,0.003,117980.0,117970.0,0.33911]
[1752215782978,0.44185884,117980.0,117970.0,0.33911]
[1752215783556,0.43169913,117990.0,117970.0,0.40034518]
[1752215783757,0.43885884,117990.0,117970.0,0.40034518]
[1752215783959,0.43885884,117990.0,117970.0,0.39934518]
[1752215784365,0.43885884,117990.0,117970.0,0.40034518]
[1752215784773,0.43885884,117990.0,117970.0,0.39934518]
[1752215784978,0.52428877,118000.0,117970.0,0.39934518]
[1752215785591,0.52428877,118000.0,117970.0,0.37684518]
[1752215785767,0.08542993,118000.0,117980.0,0.0227]
[1752215785994,0.52428877,118000.0,117990.0,0.13288]
[1752215786195,0.52428877,118000.0,117990.0,0.15076518]
[1752215786572,0.11677399,118010.0,117990.0,0.15076518]
[1752215786829,0.05672713,118020.0,117990.0,0.19516518]
[1752215787039,0.003,118000.0,117990.0,0.19516518]
[1752215787240,0.43885884,118010.0,117990.0,0.19516518]
[1752215787654,0.43885884,118000.0,117990.0,0.15076518]
[1752215788060,0.42870121,118000.0,117990.0,0.15076518]
[1752215789887,0.43270121,118000.0,117990.0,0.15076518]
[1752215790037,0.004,118000.0,117990.0,0.15076518]
[1752215790263,0.44285884,118000.0,117990.0,0.15076518]
[1752215791039,0.46555884,118000.0,117990.0,0.01788518]
[1752215791248,1.01424761,118000.0,117990.0,0.00941834]
[1752215791453,1.03966661,118000.0,117990.0,0.00215]
[1752215791653,0.0463,117990.0,117980.0,0.13288]
[1752215791926,0.57272877,117990.0,117980.0,0.13503]
[1752215792063,0.57272877,117990.0,117980.0,0.00215]
[1752215792260,0.57272877,117990.0,117980.0,0.13503]
[1752215792870,0.52942877,117990.0,117980.0,0.13503]
[1752215795887,0.43024057,117990.0,117980.0,0.13503]
[1752215796104,0.00082,117990.0,117980.0,0.13503]
[1752215796535,0.43967884,117990.0,117980.0,0.13503]
[1752215796964,0.00082,117990.0,117980.0,0.13503]
[1752215797383,0.00082,117990.0,117980.0,0.17863]
[1752215798022,0.43885884,118010.0,117980.0,0.26354502]
[1752215798255,0.43885884,118010.0,117990.0,0.022]
[1752215798457,0.43885884,118010.0,118000.0,0.13503]
[1752215798893,0.43885884,118010.0,118000.0,0.13823]
[1752215799342,0.47248597,118020.0,118000.0,0.13823]
[1752215799547,0.11905706,118020.0,118000.0,0.13823]
[1752215799748,0.43885884,118010.0,118000.0,0.13823]
[1752215799956,0.5579159,118020.0,118000.0,0.13823]
[1752215800164,0.44085884,118010.0,118000.0,0.13823]
[1752215800369,0.002,118010.0,118000.0,0.13823]
[1752215801604,0.5579159,118020.0,118000.0,0.13823]
[1752215802069,0.001,118010.0,118000.0,0.13823]
[1752215802560,0.5579159,118020.0,118000.0,0.13823]
[1752215802754,0.5589159,118020.0,118000.0,0.13823]
[1752215802979,0.12005706,118020.0,118000.0,0.13823]
[1752215803237,0.5579159,118020.0,118000.0,0.13823]
[1752215803425,0.5579159,118020.0,118000.0,0.15405884]
[1752215803599,0.001,118010.0,118000.0,0.15405884]
[1752215804963,0.43985884,118010.0,118000.0,0.15405884]
[1752215805182,0.43885884,118010.0,118000.0,0.15405884]
[1752215805431,0.16475706,118020.0,118000.0,3.95951214]
[1752215805649,0.43885884,118010.0,118000.0,4.06592716]
[1752215805868,0.42510355,118010.0,118000.0,4.06377716]
[1752215806083,0.56898877,118010.0,118000.0,3.82128214]
[1752215806741,0.56998877,118010.0,118000.0,3.82128214]
[1752215808001,0.55982971,118010.0,118000.0,3.82128214]
[1752215808734,0.55982971,118010.0,118000.0,3.8054533]
[1752215808947,0.99868855,118010.0,118000.0,3.82129706]
[1752215809371,0.55982971,118010.0,118000.0,3.82129706]
[1752215811096,0.99868855,118010.0,118000.0,3.82129706]
[1752215811499,1.02410555,118010.0,118000.0,3.82129706]
[1752215811715,1.0386464,118010.0,118000.0,3.81283123]
[1752215811942,1.0376464,118010.0,118000.0,3.81283123]
[1752215812147,1.0386464,118010.0,118000.0,3.8043654]
[1752215812542,1.0376464,118010.0,118000.0,3.79589957]
[1752215812989,1.0396464,118010.0,118000.0,3.78743374]
[1752215813181,1.0406464,118010.0,118000.0,3.77896791]
[1752215813599,1.0396464,118010.0,118000.0,3.77050208]
[1752215813746,1.0426464,118010.0,118000.0,3.77050208]
[1752215813947,1.0426464,118010.0,118000.0,3.76203576]
[1752215814357,1.0426464,118010.0,118000.0,3.75356944]
[1752215814562,0.58924671,118010.0,118000.0,3.75356944]
[1752215814775,0.58924671,118010.0,118000.0,3.74510312]
[1752215815145,0.72212671,118010.0,118000.0,3.7366368]
[1752215815570,0.28326787,118010.0,118000.0,3.7366368]
[1752215815783,0.72212671,118010.0,118000.0,3.7366368]
[1752215816156,0.72212671,118010.0,118000.0,3.7398768]
[1752215816892,0.51912971,118010.0,118000.0,3.7419468]
[1752215817104,0.08027087,118010.0,118000.0,3.7419468]
[1752215817314,0.51912971,118010.0,118000.0,3.7419468]
[1752215817513,0.005,118010.0,118000.0,3.7857468]
[1752215817959,0.47248597,118020.0,118000.0,3.7857468]
[1752215818161,0.5579159,118020.0,118010.0,0.13612]
[1752215818305,0.5579159,118020.0,118010.0,0.15403376]
[1752215819557,0.5599159,118020.0,118010.0,0.15403376]
[1752215819764,0.5497582,118020.0,118010.0,0.15403376]
[1752215819987,0.02546943,118020.0,118010.0,0.15403376]
[1752215820119,0.002,118020.0,118010.0,0.19863376]
[1752215820570,0.005,118020.0,118010.0,0.72292253]
[1752215821127,0.003,118020.0,118010.0,0.72292253]
[1752215821630,0.003,118020.0,118010.0,0.72392253]
[1752215821927,0.003,118020.0,118010.0,0.72292253]
[1752215822068,0.472792,118040.0,118010.0,0.28406369]
[1752215822270,0.472792,118040.0,118020.0,0.04784]
[1752215822578,0.472792,118040.0,118030.0,0.13495]
[1752215822786,0.472792,118040.0,118030.0,0.15403376]
[1752215823934,0.472792,118040.0,118030.0,0.02115376]
[1752215824147,0.472792,118040.0,118030.0,0.15499376]
[1752215825515,0.473792,118040.0,118030.0,0.15499376]
[1752215826097,0.03493316,118040.0,118030.0,0.15499376]
[1752215826300,0.473792,118040.0,118030.0,0.15499376]
[1752215828041,0.46003919,118040.0,118030.0,0.15499376]
[1752215828381,0.46003919,118040.0,118030.0,0.15496785]
[1752215829129,0.46003919,118040.0,118030.0,0.01681785]
[1752215829330,0.46003919,118040.0,118030.0,0.14965785]
[1752215829331,0.89889803,118040.0,118030.0,0.14965785]
[1752215829538,0.46003919,118040.0,118030.0,0.14965785]
[1752215829751,0.4498833,118040.0,118030.0,0.14965785]
[1752215831665,0.97417207,118040.0,118030.0,0.01681785]
[1752215831870,1.01787207,118040.0,118030.0,0.14965785]
[1752215832068,0.14015439,118040.0,118030.0,0.14965785]
[1752215832283,0.09645439,118040.0,118030.0,0.14965785]
[1752215832511,0.4498833,118040.0,118030.0,0.14965785]
[1752215835779,0.4498833,118040.0,118030.0,0.01681785]
[1752215835999,0.0443,118020.0,118010.0,0.10641502]
[1752215836197,0.0461,118010.0,118000.0,3.72079304]
[1752215836423,0.57038877,118010.0,118000.0,3.85359304]
[1752215837251,0.52428877,118010.0,118000.0,3.85359304]
[1752215837576,0.08542993,118010.0,118000.0,3.85359304]
[1752215837869,0.52528877,118010.0,118000.0,3.85359304]
[1752215838104,0.5115329,118010.0,118000.0,3.85359304]
[1752215838289,0.07267406,118010.0,118000.0,3.85359304]
[1752215838441,0.5115329,118010.0,118000.0,3.84512946]
[1752215838838,0.5115329,118010.0,118000.0,3.83666371]
[1752215839248,0.5115329,118010.0,118000.0,3.82819796]
[1752215839652,0.5115329,118010.0,118000.0,3.81973221]
[1752215840308,0.5115329,118010.0,118000.0,3.81126646]
[1752215840529,0.5115329,118010.0,118000.0,3.80280071]
[1752215840891,0.5115329,118010.0,118000.0,3.79433496]
[1752215841435,0.5115329,118010.0,118000.0,3.78586921]
[1752215841647,0.5115329,118010.0,118000.0,3.77740346]
[1752215841847,0.98383345,118010.0,118000.0,3.64460346]
[1752215842050,1.1311743,118010.0,118000.0,3.60650759]
[1752215842250,1.1565933,118010.0,118000.0,3.60650759]
[1752215842434,1.1565933,118010.0,118000.0,3.59804184]
[1752215842637,1.1565933,118010.0,118000.0,3.56841172]
[1752215842983,1.1565933,118010.0,118000.0,3.55994597]
[1752215843122,1.4965933,118010.0,118000.0,3.55994597]
[1752215843373,1.4965933,118010.0,118000.0,3.5218501]
[1752215843764,1.4965933,118010.0,118000.0,3.51338435]
[1752215843990,1.4965933,118010.0,118000.0,3.48375423]
[1752215844266,1.4965933,118010.0,118000.0,3.47528848]
[1752215844448,1.4965933,118010.0,118000.0,3.46682273]
[1752215844734,1.52214143,118010.0,118000.0,3.43719261]
[1752215844944,1.07270507,118010.0,118000.0,3.42872686]
[1752215845406,1.07270507,118010.0,118000.0,3.39062481]
[1752215845865,1.04715694,118010.0,118000.0,3.35252276]
[1752215846081,1.04715694,118010.0,118000.0,3.34405564]
[1752215846522,0.61887562,118010.0,118000.0,3.30595359]
[1752215846738,1.04715694,118010.0,118000.0,3.30595359]
[1752215846950,1.04715694,118010.0,118000.0,3.29748647]
[1752215847165,1.04715694,118010.0,118000.0,3.26785154]
[1752215847410,1.04715694,118010.0,118000.0,3.25938442]
[1752215847843,1.04715694,118010.0,118000.0,3.23710218]
[1752215848045,1.04715694,118010.0,118000.0,3.22863506]
[1752215848479,1.04715694,118010.0,118000.0,3.22016794]
[1752215851043,0.91435694,118010.0,118000.0,3.22016794]
[1752215851281,1.04719694,118010.0,118000.0,3.22016794]
[1752215852668,0.91435694,118010.0,118000.0,3.22016794]
[1752215852895,0.91435694,118010.0,118000.0,3.21170132]
[1752215852896,1.47543826,118010.0,118000.0,3.21170132]
[1752215853097,1.54534464,118010.0,118000.0,3.18206815]
[1752215853315,1.54534464,118010.0,118000.0,3.17360153]
[1752215853672,1.57089277,118010.0,118000.0,3.16513491]
[1752215853876,1.57089277,118010.0,118000.0,3.13550174]
[1752215854131,1.57089277,118010.0,118000.0,3.12703512]
[1752215854508,1.14261145,118010.0,118000.0,3.1185685]
[1752215854861,0.98426332,118010.0,118000.0,3.11010188]
[1752215855052,1.11706332,118010.0,118000.0,3.11010188]
[1752215855377,1.11706332,118010.0,118000.0,3.10163526]
[1752215855540,1.54534464,118010.0,118000.0,3.10163526]
[1752215855739,1.63921223,118010.0,118000.0,3.06353547]
[1752215856138,0.67636798,118010.0,118000.0,3.05506885]
[1752215856336,1.16545609,118010.0,118000.0,3.05506885]
[1752215856664,1.16675609,118010.0,118000.0,3.05506885]
[1752215857052,1.18129694,118010.0,118000.0,3.05505113]
[1752215859824,1.60957826,118010.0,118000.0,3.05505113]
[1752215860026,1.18129694,118010.0,118000.0,3.05505113]
[1752215860224,1.26672687,118010.0,118000.0,3.05505113]
[1752215860822,1.18129694,118010.0,118000.0,3.05505113]
[1752215862428,1.65957826,118010.0,118000.0,3.04658453]
[1752215862870,1.65957826,118010.0,118000.0,3.03811793]
[1752215863274,1.65957826,118010.0,118000.0,3.02965133]
[1752215863738,1.65957826,118010.0,118000.0,3.02118473]
[1752215863905,1.74500819,118010.0,118000.0,3.02118473]
[1752215864123,1.74500819,118010.0,118000.0,3.01271813]
[1752215864612,1.74500819,118010.0,118000.0,3.00425153]
[1752215865325,1.74500819,118010.0,118000.0,2.98520302]
[1752215865622,1.74500819,118010.0,118000.0,2.97674736]
[1752215865840,1.74500819,118010.0,118000.0,2.96827977]
[1752215866350,1.74500819,118010.0,118000.0,2.95981218]
[1752215866559,1.74500819,118010.0,118000.0,2.95134459]
[1752215866847,1.76563629,118010.0,118000.0,2.95134459]
[1752215866993,1.76563629,118010.0,118000.0,2.942877]
[1752215867433,1.76563629,118010.0,118000.0,2.93440941]
[1752215867834,1.76563629,118010.0,118000.0,2.92594182]
[1752215868237,1.76563629,118010.0,118000.0,2.91747423]
[1752215868642,1.76563629,118010.0,118000.0,2.90900664]
[1752215869067,1.76563629,118010.0,118000.0,2.90053905]
[1752215869440,1.76563629,118010.0,118000.0,2.89207146]
[1752215869773,1.76563629,118010.0,118000.0,2.88360387]
[1752215870193,1.76563629,118010.0,118000.0,2.87513628]
[1752215870602,1.63020636,118010.0,118000.0,2.87513628]
[1752215871348,1.58530636,118010.0,118000.0,2.87513628]
[1752215871702,1.14671099,118010.0,118000.0,2.87513628]
[1752215872074,1.31671562,118010.0,118000.0,2.87513628]
[1752215872368,1.45035562,118010.0,118000.0,2.87513628]
[1752215876023,1.01176025,118010.0,118000.0,2.87513628]
[1752215876382,0.57316488,118010.0,118000.0,2.87513628]
[1752215876585,0.57300488,118010.0,118000.0,2.87513628]
[1752215876914,1.01160025,118010.0,118000.0,3.00857628]
[1752215877070,1.01160025,118010.0,118000.0,3.00859131]
[1752215877848,1.01160025,118010.0,118000.0,3.05409131]
[1752215878051,0.9971794,118010.0,118000.0,3.05409131]
[1752215879733,0.9971794,118010.0,118000.0,3.03826226]
[1752215879935,0.9971794,118010.0,118000.0,3.05410009]
[1752215880343,0.8635794,118010.0,118000.0,3.05410009]
[1752215881776,0.8635794,118010.0,118000.0,3.05410898]
[1752215883089,0.8635794,118010.0,118000.0,2.87516898]
[1752215883090,0.9969794,118010.0,118000.0,2.87516898]
[1752215883295,1.43557477,118010.0,118000.0,3.00852898]
[1752215885084,1.43557477,118010.0,118000.0,2.87516898]
[1752215886627,1.63634555,118010.0,118000.0,2.86670249]
[1752215887151,1.58634555,118010.0,118000.0,2.858236]
[1752215887292,1.58634555,118010.0,118000.0,2.84976951]
[1752215887488,1.58634555,118010.0,118000.0,2.82013679]
[1752215887702,1.63634555,118010.0,118000.0,2.8116703]
[1752215888069,1.63834555,118010.0,118000.0,2.8116703]
[1752215888341,1.63834555,118010.0,118000.0,2.80320381]
[1752215888524,1.63834555,118010.0,118000.0,2.79473732]
[1752215889064,1.63834555,118010.0,118000.0,2.78627083]
[1752215889368,1.63734555,118010.0,118000.0,2.77780434]
[1752215889727,1.64034555,118010.0,118000.0,2.76933785]
[1752215890071,1.64034555,118010.0,118000.0,2.76087136]
[1752215890281,1.64034555,118010.0,118000.0,2.75087136]
[1752215890498,1.64034555,118010.0,118000.0,2.74240377]
[1752215890907,1.64034555,118010.0,118000.0,2.73393618]
[1752215891242,1.50491562,118010.0,118000.0,2.72546859]
[1752215891650,1.50491562,118010.0,118000.0,2.717001]
[1752215892053,1.55491562,118010.0,118000.0,2.70853341]
[1752215892477,1.55491562,118010.0,118000.0,2.70006582]
[1752215892723,1.64034555,118010.0,118000.0,2.70006582]
[1752215893638,1.64034555,118010.0,118000.0,2.70007898]
[1752215896066,1.59034555,118010.0,118000.0,2.69161139]
[1752215896605,1.50491562,118010.0,118000.0,2.69161139]
[1752215896810,1.55491562,118010.0,118000.0,2.69161139]
[1752215898381,1.55491562,118010.0,118000.0,2.67575151]
[1752215898605,1.55491562,118010.0,118000.0,2.69161094]
[1752215898788,1.55491562,118010.0,118000.0,2.68314339]
[1752215899093,1.64034555,118010.0,118000.0,2.67467584]
[1752215899500,1.64034555,118010.0,118000.0,2.66620829]
[1752215899908,1.64034555,118010.0,118000.0,2.65774074]
[1752215900115,0.76315481,118010.0,118000.0,2.65774074]
[1752215900342,1.64034555,118010.0,118000.0,2.64927319]
[1752215900725,1.64034555,118010.0,118000.0,2.64080564]
[1752215901239,1.64034555,118010.0,118000.0,2.63233809]
[1752215901570,1.64034555,118010.0,118000.0,2.62387054]
[1752215901898,1.64034555,118010.0,118000.0,2.61540299]
[1752215902430,1.64034555,118010.0,118000.0,2.60693536]
[1752215902607,1.64034555,118010.0,118000.0,2.59846773]
[1752215903075,1.64034555,118010.0,118000.0,2.5900001]
[1752215903475,1.64034555,118010.0,118000.0,2.58153247]
[1752215903814,1.64034555,118010.0,118000.0,2.57306484]
[1752215904225,1.64034555,118010.0,118000.0,2.57306376]
[1752215904418,1.64034555,118010.0,118000.0,2.56459613]
[1752215904907,1.64034555,118010.0,118000.0,2.5311285]
[1752215905062,1.64034555,118010.0,118000.0,2.52266087]
[1752215908779,2.04034555,118010.0,118000.0,2.52266087]
[1752215909314,0.76315481,118010.0,118000.0,2.52266087]
[1752215909674,1.64034555,118010.0,118000.0,2.52266087]
[1752215918075,2.04034555,118010.0,118000.0,2.52266087]
[1752215921366,2.01484555,118010.0,118000.0,2.52266087]
[1752215922283,1.98954555,118010.0,118000.0,2.52266087]
[1752215925462,2.01324555,118010.0,118000.0,2.52266087]
[1752215928627,1.61324555,118010.0,118000.0,2.52266087]
[1752215929239,1.63704555,118010.0,118000.0,2.52267885]
[1752215930128,1.68704555,118010.0,118000.0,2.51421122]
[1752215930344,1.69146438,118010.0,118000.0,2.50574359]
[1752215930677,2.13005975,118010.0,118000.0,2.46763923]
[1752215930879,2.15216387,118010.0,118000.0,2.46763923]
[1752215931077,1.7105685,118010.0,118000.0,2.4591716]
[1752215931325,1.7105685,118010.0,118000.0,2.42953487]
[1752215931561,1.7125685,118010.0,118000.0,2.42106724]
[1752215931970,1.7105685,118010.0,118000.0,2.38296288]
[1752215932232,1.7085685,118010.0,118000.0,2.38296288]
[1752215932447,1.62961857,118010.0,118000.0,2.37449525]
[1752215932811,1.62961857,118010.0,118000.0,2.36602762]
[1752215933123,1.62661857,118010.0,118000.0,2.35755999]
[1752215933563,1.49773857,118010.0,118000.0,2.34909045]
[1752215933672,1.60851445,118010.0,118000.0,2.34909045]
[1752215933874,1.60851445,118010.0,118000.0,2.34062091]
[1752215934378,1.60851445,118010.0,118000.0,2.33215137]
[1752215934785,1.69394438,118010.0,118000.0,2.32368183]
[1752215935000,1.60851445,118010.0,118000.0,2.32368183]
[1752215935201,0.92499823,118010.0,118000.0,2.32368183]
[1752215935437,1.4964736,118010.0,118000.0,2.34868183]
[1752215935607,1.51101445,118010.0,118000.0,2.34868183]
[1752215936181,1.50701445,118010.0,118000.0,2.34868183]
[1752215936292,1.50301445,118010.0,118000.0,2.34868183]
[1752215936501,1.50701445,118010.0,118000.0,2.34868183]
[1752215937463,1.50701445,118010.0,118000.0,2.32368183]
[1752215937674,1.51001445,118010.0,118000.0,2.32368183]